fUSD/lending_fUSD_20251023
["ID","MTS","AMOUNT","RATE_DAILY","PERIOD"]
[392191479,1761249042101,-500.0,0.0003695,2]
[392191480,1761249042111,-500.0,0.0003695,2]
[392191481,1761249042121,-220.0,0.0003695,2]
[392191482,1761249042131,-500.0,0.0003695,2]
[392191483,1761249042141,-500.0,0.0003695,2]
[392191484,1761249042151,-151.0,0.0003695,2]
[392191485,1761249042162,-151.0,0.0003695,2]
[392191486,1761249042173,-500.0,0.0003695,2]
[392191487,1761249042183,-500.0,0.0003695,2]
[392191488,1761249042193,-500.0,0.0003695,2]
[392191489,1761249042203,-500.0,0.0003695,2]
[392191490,1761249042213,-500.0,0.0003695,2]
[392191491,1761249042223,-500.0,0.0003695,2]
[392191492,1761249042232,-500.0,0.0003695,2]
[392191493,1761249042242,-500.0,0.0003695,2]
[392191494,1761249042251,-500.0,0.0003695,2]
[392191495,1761249042261,-500.0,0.0003695,2]
[392191496,1761249042270,-500.0,0.0003695,2]
[392191497,1761249042280,-500.0,0.0003695,2]
[392191498,1761249042290,-322.6107,0.0003695,2]
[392191499,1761249042302,-500.0,0.0003695,2]
[392191500,1761249042312,-500.0,0.0003695,2]
[392191501,1761249042322,-500.0,0.0003695,2]
[392191502,1761249042331,-500.0,0.0003695,2]
[392191503,1761249042342,-500.0,0.0003695,2]
[392191504,1761249042352,-500.0,0.0003695,2]
[392191505,1761249042361,-150.57506,0.0003696,2]
[392191506,1761249042373,-500.0,0.00036972,120]
[392191507,1761249042383,-247.2961628,0.00036973,5]
[392191508,1761249042394,-500.0,0.00036973,2]
[392191509,1761249042403,-500.0,0.00036973,5]
[392191510,1761249042413,-500.47029499,0.00036973,5]
[392191511,1761249042422,-500.0,0.00036973,5]
[392191512,1761249042432,-500.0,0.00036973,5]
[392191513,1761249042442,-271.07694409,0.00036973,5]
[392191514,1761249042452,-500.0,0.00036973,5]
[392191515,1761249042461,-500.0,0.00036973,5]
[392191516,1761249042472,-500.0,0.00036973,5]
[392191517,1761249042481,-160.15265772,0.00036973,2]
[392191518,1761249042491,-500.0,0.00036973,5]
[392191519,1761249042501,-500.0,0.00036973,5]
[392191520,1761249042511,-500.0,0.00036973,5]
[392191521,1761249042520,-500.0,0.00036973,5]
[392191522,1761249042530,-500.0,0.00036973,5]
[392191523,1761249042539,-200.0,0.00036973,5]
[392191524,1761249042549,-500.0,0.00036973,5]
[392191525,1761249042559,-503.76549716,0.00036973,5]
[392191526,1761249042569,-150.57506,0.0003698,2]
[392191527,1761249042579,-263.906,0.00036985,2]
[392191529,1761249042588,-1250.0,0.00037,2]
[392191530,1761249042598,-150.57507,0.0003701,2]
[392191531,1761249042607,-150.57507,0.0003702,2]
[392191532,1761249042617,-150.57507,0.0003704,2]
[392191533,1761249042627,-556.93,0.00037047,14]
[392191534,1761249042637,-474.53,0.00037057,2]
[392191535,1761249042646,-150.57506,0.0003707,2]
[392191536,1761249042656,-1000.0,0.00037121,5]
[392191537,1761249042666,-600.0,0.00037126,2]
[392191538,1761249042676,-200.0,0.00037126,2]
[392191539,1761249042685,-200.0,0.00037126,2]
[392191540,1761249042694,-1000.0,0.00037221,5]
[392191541,1761249042704,-339.31532798,0.00037221,5]
[392191542,1761249042714,-446.38832103,0.00037221,5]
[392191543,1761249042725,-1000.0,0.00037221,2]
[392191544,1761249042736,-556.93,0.00037321,14]
[392191545,1761249042746,-227.73314867,0.00037462,4]
[392191546,1761249042761,-595.37131296,0.00037498,2]
[392191547,1761249042770,-151.0,0.00037498,2]
[392191548,1761249042779,-151.0,0.00037498,2]
[392191549,1761249042788,-151.0,0.00037498,2]
[392191550,1761249042797,-1000.0,0.00037521,2]
[392191551,1761249042806,-1000.0,0.00037521,5]
[392191552,1761249042815,-1000.0,0.00037521,5]
[392191553,1761249042824,-1000.0,0.00037521,5]
[392191554,1761249042833,-1000.0,0.00037521,5]
[392191555,1761249042842,-500.30913434,0.00037521,5]
[392191556,1761249042850,-1000.0,0.00037521,5]
[392191558,1761249042859,-1000.0,0.00037521,5]
[392191559,1761249042869,-1000.0,0.00037521,5]
[392191560,1761249042879,-1000.0,0.00037521,5]
[392191561,1761249042888,-1030.89090806,0.00037521,5]
[392191562,1761249042898,-358.50418649,0.00037521,5]
[392191563,1761249042907,-556.93,0.00037595,14]
[392191564,1761249042916,-300.0,0.00037617,120]
[392191565,1761249042926,-400.0,0.00037658,5]
[392191566,1761249042935,-739.0,0.00037663,3]
[392191567,1761249042944,-200.0,0.00037663,3]
[392191568,1761249042955,-600.0,0.00037674,2]
[392191569,1761249042964,-200.0,0.00037674,2]
[392191570,1761249042974,-200.0,0.00037674,2]
[392191571,1761249042984,-500.0,0.00037768,2]
[392191572,1761249042993,-3337.50818114,0.00037776,2]
[392191573,1761249043003,-556.95,0.00037869,14]
[392191574,1761249043012,-476.23156132,0.00037989,3]
[392191575,1761249043022,-14258.0816685,0.00037989,3]
[392191576,1761249043031,-11453.62047982,0.00037999,120]
[392191577,1761249043041,-560.0,0.00038024,2]
[392191578,1761249043051,-270.0,0.00038024,3]
[392191579,1761249043060,-408.01639566,0.00038034,2]
[392191580,1761249043070,-617.40005154,0.00038046,2]
[392191581,1761249043080,-151.0,0.00038046,2]
[392191582,1761249043089,-151.0,0.00038046,2]
[392191583,1761249043099,-151.0,0.00038046,2]
[392191584,1761249043109,-1211.21318874,0.00038056,120]
[392191585,1761249043119,-289.76729964,0.00038068,5]
[392191586,1761249043128,-1000.0,0.00038068,5]
[392191587,1761249043138,-1000.0,0.00038068,5]
[392191588,1761249043147,-1500.0,0.00038068,5]
[392191589,1761249043157,-1502.04286902,0.00038068,5]
[392191590,1761249043166,-501.38371264,0.00038068,5]
[392191591,1761249043175,-1500.0,0.00038068,5]
[392191592,1761249043186,-1500.0,0.00038068,5]
[392191593,1761249043196,-726.67837332,0.000381,33]
[392191594,1761249043205,-150.0,0.00038121,4]
[392191595,1761249043215,-150.0,0.00038121,4]
[392191596,1761249043224,-474.53,0.0003818,2]
[392191597,1761249043233,-600.0,0.00038222,2]
[392191598,1761249043243,-200.0,0.00038222,2]
[392191599,1761249043252,-200.0,0.00038222,2]
[392191600,1761249043262,-14258.0816685,0.00038238,3]
[392191601,1761249043271,-5888.0,0.00038248,7]
[392191602,1761249043282,-162.42274892,0.00038319,2]
[392191603,1761249043291,-287.61899177,0.00038319,2]
[392191604,1761249043305,-334.5472959,0.00038319,2]
[392191605,1761249043314,-600.0,0.00038342,5]
[392191606,1761249043324,-640.24385345,0.00038594,2]
[392191607,1761249043334,-151.0,0.00038594,2]
[392191608,1761249043343,-151.0,0.00038594,2]
[392191609,1761249043352,-151.0,0.00038594,2]
[392191610,1761249043360,-1000.0,0.00038616,5]
[392191611,1761249043368,-502.90900814,0.00038616,5]
[392191612,1761249043378,-3337.50818114,0.00038667,2]
[392191613,1761249043387,-14258.0816685,0.0003867,3]
[392191614,1761249043397,-20000.0,0.0003868,2]
[392191615,1761249043407,-600.0,0.0003877,2]
[392191616,1761249043416,-200.0,0.0003877,2]
[392191617,1761249043426,-200.0,0.0003877,2]
[392191618,1761249043436,-3697.66490734,0.00039,2]
[392191619,1761249043446,-800.0,0.00039027,5]
[392191620,1761249043455,-663.93287602,0.00039142,2]
[392191621,1761249043466,-151.0,0.00039142,2]
[392191622,1761249043476,-152.35920153,0.00039142,2]
[392191623,1761249043486,-151.0,0.00039142,2]
[392191624,1761249043496,-408.01639566,0.00039181,2]
[392191625,1761249043505,-196.1161529,0.00039202,2]
[392191626,1761249043515,-169.60271841,0.00039203,15]
[392191627,1761249043525,-5888.0,0.00039205,2]
[392191628,1761249043534,-500.0,0.00039259,5]
[392191629,1761249043544,-14258.0816685,0.0003929,3]
[392191630,1761249043554,-474.53,0.00039303,2]
[392191631,1761249043563,-159.52,0.0003931,2]
[392191632,1761249043573,-207.4,0.00039317,2]
[392191633,1761249043583,-1679.0,0.00039318,5]
[392191634,1761249043593,-600.0,0.00039318,2]
[392191635,1761249043603,-200.0,0.00039318,2]
[392191636,1761249043612,-200.0,0.00039318,2]
[392191637,1761249043622,-1000.0,0.00039421,2]
[392191638,1761249043632,-307.0,0.00039434,2]
[392191639,1761249043642,-3337.50818114,0.00039557,2]
[392191640,1761249043651,-316.82,0.00039654,2]
[392191641,1761249043661,-10000.0,0.0003968,2]
[392191642,1761249043671,-298.26089446,0.00039688,2]
[392191643,1761249043680,-346.92554585,0.00039688,2]
[392191644,1761249043690,-747.8093786,0.00039689,2]
[392191645,1761249043813,-599.60298507,0.00039689,2]
[392191646,1761249043832,-688.49839244,0.0003969,2]
[392191647,1761249043842,-151.0,0.0003969,2]
[392191648,1761249043851,-151.0,0.0003969,2]
[392191649,1761249043861,-1000.0,0.00039712,5]
[392191650,1761249043870,-169.6027184,0.00039839,15]
[392191651,1761249043880,-169.24,0.00039843,14]
[392191652,1761249043890,-600.0,0.00039866,2]
[392191653,1761249043899,-200.0,0.00039866,2]
[392191654,1761249043909,-200.0,0.00039866,2]
[392191655,1761249043919,-200.0,0.000399,14]
[392191656,1761249043929,-14258.0816685,0.0003997,3]
[392191657,1761249043939,-301.42904761,0.00039973,5]
[392191658,1761249043950,-156.39673461,0.00039973,5]
[392191659,1761249043960,-161.62489034,0.00039973,5]
[392191660,1761249043970,-42774.2450054,0.0003998,3]
[392191661,1761249043980,-14348.0894914,0.0003998,3]
[392191662,1761249043990,-151.0,0.00039985,14]
[392191663,1761249044002,-14258.0816685,0.00039989,3]
[392191664,1761249044011,-14348.0894914,0.00039989,3]
[392191665,1761249044022,-500.0,0.00039989,7]
[392191666,1761249044031,-71290.4083424,0.0003999,3]
[392191667,1761249044040,-71740.4474572,0.0003999,3]
[392191668,1761249044050,-155.757,0.00039999,2]
[392191669,1761249044059,-500.0,0.00039999,120]
[392191670,1761249044068,-1858.80379147,0.0004,2]
[392191671,1761249044078,-5329.76975438,0.0004,120]
[392191672,1761249044087,-150352.71707634,0.0004,120]
[392191673,1761249044098,-500.0,0.00040116,30]
[392191674,1761249044107,-500.0,0.00040195,30]
[392191675,1761249044116,-153.0,0.000402,120]
[392191676,1761249044126,-713.97283296,0.00040238,2]
[392191677,1761249044135,-151.0,0.00040238,2]
[392191678,1761249044145,-151.0,0.00040238,2]
[392191679,1761249044155,-408.01639566,0.00040329,28]
[392191680,1761249044165,-500.0,0.00040341,30]
[392191681,1761249044176,-622.57,0.00040373,120]
[392191682,1761249044191,-14348.0894914,0.00040393,3]
[392191683,1761249044201,-202.8170051,0.00040397,5]
[392191684,1761249044210,-14258.0816685,0.00040403,3]
[392191685,1761249044221,-500.0,0.00040413,7]
[392191686,1761249044231,-600.0,0.00040414,2]
[392191687,1761249044242,-200.0,0.00040414,2]
[392191688,1761249044253,-200.0,0.00040414,2]
[392191689,1761249044263,-800.0,0.00040418,30]
[392191690,1761249044273,-474.53,0.00040426,2]
[392191691,1761249044283,-3337.50818114,0.00040448,15]
[392191692,1761249044294,-169.6027184,0.00040476,15]
[392191693,1761249044308,-14348.0894914,0.0004048,3]
[392191694,1761249044319,-14258.0816685,0.00040491,3]
[392191695,1761249044330,-1869.30243635,0.000405,120]
[392191696,1761249044341,-500.0,0.0004066,5]
[392191697,1761249044351,-500.0,0.00040719,30]
[392191698,1761249044362,-349.0,0.0004075,5]
[392191699,1761249044372,-500.0,0.0004076,30]
[392191700,1761249044382,-500.0,0.00040771,30]
[392191701,1761249044392,-740.38982778,0.00040786,2]
[392191702,1761249044402,-151.0,0.00040786,2]
[392191703,1761249044412,-151.0,0.00040786,2]
[392191704,1761249044422,-500.0,0.00040817,30]
[392191705,1761249044432,-192.57926527,0.00040835,30]
[392191706,1761249044442,-500.0,0.00040836,30]
[392191707,1761249044452,-500.0,0.00040942,30]
[392191708,1761249044462,-600.0,0.00040962,2]
[392191709,1761249044472,-200.0,0.00040962,2]
[392191710,1761249044481,-200.0,0.00040962,2]
[392191711,1761249044491,-169.24,0.00041017,14]
[392191712,1761249044500,-974.02941388,0.0004102,30]
[392191713,1761249044510,-14258.0816685,0.00041031,3]
[392191714,1761249044520,-14348.0894914,0.00041046,3]
[392191715,1761249044530,-14258.0816685,0.00041055,3]
[392191716,1761249044540,-309.29654756,0.00041057,2]
[392191717,1761249044549,-359.76179104,0.00041057,2]
[392191718,1761249044558,-151.55363201,0.00041073,5]
[392191719,1761249044568,-14348.0894914,0.00041073,3]
[392191720,1761249044578,-14258.0816685,0.00041076,3]
[392191721,1761249044587,-500.0,0.00041083,30]
[392191722,1761249044596,-14258.0816685,0.00041086,3]
[392191723,1761249044606,-14348.0894914,0.00041086,3]
[392191724,1761249044615,-500.0,0.00041095,120]
[392191725,1761249044624,-500.0,0.00041096,8]
[392191726,1761249044634,-500.0,0.00041096,30]
[392191727,1761249044643,-500.0,0.00041096,30]
[392191728,1761249044652,-500.0,0.00041096,30]
[392191729,1761249044661,-500.0,0.00041096,30]
[392191730,1761249044670,-500.0,0.00041096,30]
[392191731,1761249044680,-500.0,0.00041096,30]
[392191732,1761249044689,-500.0,0.00041096,30]
[392191733,1761249044699,-500.0,0.00041096,30]
[392191734,1761249044708,-500.0,0.00041096,30]
[392191735,1761249044717,-500.0,0.00041096,30]
[392191736,1761249044726,-500.0,0.00041096,30]
[392191737,1761249044735,-500.0,0.00041096,30]
[392191738,1761249044744,-500.0,0.00041096,30]
[392191739,1761249044753,-500.0,0.00041096,30]
[392191740,1761249044762,-500.0,0.00041096,30]
[392191741,1761249044772,-500.0,0.00041096,30]
[392191742,1761249044781,-500.0,0.00041096,30]
[392191743,1761249044790,-500.0,0.00041096,30]
[392191744,1761249044800,-500.0,0.00041096,30]
[392191745,1761249044810,-500.0,0.00041096,30]
[392191746,1761249044819,-500.0,0.00041096,30]
[392191747,1761249044829,-500.0,0.00041096,30]
[392191748,1761249044839,-500.0,0.00041096,30]
[392191749,1761249044848,-500.0,0.00041096,30]
[392191750,1761249044858,-500.0,0.00041096,30]
[392191751,1761249044868,-500.0,0.00041096,30]
[392191752,1761249044878,-500.0,0.00041096,30]
[392191753,1761249044887,-500.0,0.00041096,30]
[392191754,1761249044897,-500.0,0.00041096,30]
[392191755,1761249044907,-500.0,0.00041096,30]
[392191756,1761249044918,-500.0,0.00041096,30]
[392191757,1761249044928,-500.0,0.00041096,30]
[392191758,1761249044938,-500.0,0.00041096,30]
[392191759,1761249044948,-500.0,0.00041096,30]
[392191760,1761249044959,-500.0,0.00041096,30]
[392191761,1761249044970,-500.0,0.00041096,30]
[392191762,1761249044981,-500.0,0.00041096,30]
[392191763,1761249044990,-500.0,0.00041096,30]
[392191764,1761249044999,-500.0,0.00041096,30]
[392191765,1761249045009,-500.0,0.00041096,30]
[392191766,1761249045019,-500.0,0.00041096,30]
[392191767,1761249045030,-500.0,0.00041096,30]
[392191768,1761249045040,-500.0,0.00041096,30]
[392191769,1761249045048,-500.0,0.00041096,30]
[392191770,1761249045059,-500.0,0.00041096,30]
[392191771,1761249045068,-500.0,0.00041096,30]
[392191772,1761249045078,-500.0,0.00041096,30]
[392191773,1761249045087,-500.0,0.00041096,30]
[392191774,1761249045096,-500.0,0.00041096,30]
[392191775,1761249045105,-500.0,0.00041096,30]
[392191776,1761249045116,-500.0,0.00041096,30]
[392191777,1761249045125,-500.0,0.00041096,30]
[392191778,1761249045136,-500.0,0.00041096,30]
[392191779,1761249045145,-540.0,0.00041096,30]
[392191780,1761249045155,-4000.0,0.00041096,5]
[392191781,1761249045167,-200.0,0.00041096,20]
[392191782,1761249045177,-494.0,0.00041096,120]
[392191783,1761249045190,-500.0,0.0004111,30]
[392191784,1761249045200,-169.6027184,0.00041112,15]
[392191785,1761249045210,-494.0,0.00041151,120]
[392191786,1761249045219,-494.0,0.00041206,120]
[392191787,1761249045229,-438.36324517,0.00041208,10]
[392191788,1761249045240,-500.0,0.0004121,30]
[392191789,1761249045250,-14348.0894914,0.00041211,3]
[392191790,1761249045259,-14258.0816685,0.0004122,3]
[392191791,1761249045269,-206.51551132,0.00041231,7]
[392191792,1761249045280,-14258.0816685,0.00041241,3]
[392191793,1761249045290,-14348.0894914,0.0004125,3]
[392191794,1761249045301,-1333.0563776,0.00041251,2]
[392191795,1761249045311,-500.0,0.00041257,30]
[392191796,1761249045322,-478.17,0.0004126,2]
[392191797,1761249045332,-494.0,0.0004126,120]
[392191798,1761249045341,-1000.0,0.00041273,10]
[392191799,1761249045351,-151.0,0.00041292,14]
[392191800,1761249045360,-14258.0816685,0.00041294,3]
[392191801,1761249045369,-500.0,0.00041304,7]
[392191802,1761249045379,-14348.0894914,0.00041305,3]
[392191803,1761249045389,-21132.1285885,0.00041315,2]
[392191804,1761249045400,-494.0,0.00041315,120]
[392191805,1761249045410,-767.7842514,0.00041334,2]
[392191806,1761249045421,-151.0,0.00041334,2]
[392191807,1761249045431,-151.0,0.00041334,2]
[392191808,1761249045442,-3337.50818114,0.00041338,15]
[392191809,1761249045452,-500.0,0.00041364,30]
[392191810,1761249045461,-494.0,0.0004137,120]
[392191811,1761249045471,-191.86,0.00041383,2]
[392191812,1761249045480,-500.0,0.00041419,30]
[392191813,1761249045490,-494.0,0.00041425,120]
[392191814,1761249045499,-500.0,0.00041426,30]
[392191815,1761249045508,-408.01639566,0.00041477,28]
[392191816,1761249045518,-494.0,0.0004148,120]
[392191817,1761249045609,-600.0,0.0004151,2]
[392191818,1761249045620,-200.0,0.0004151,2]
[392191819,1761249045630,-200.0,0.0004151,2]
[392191820,1761249045641,-494.0,0.00041534,120]
[392191821,1761249045651,-474.53,0.00041549,2]
[392191822,1761249045662,-494.0,0.00041589,120]
[392191823,1761249045671,-494.0,0.00041644,120]
[392191824,1761249045681,-494.0,0.00041699,120]
[392191825,1761249045690,-169.6027184,0.00041748,15]
[392191826,1761249045699,-494.0,0.00041754,120]
[392191827,1761249045708,-494.0,0.00041808,120]
[392191828,1761249045717,-494.0,0.00041863,120]
[392191829,1761249045726,-796.19226871,0.00041882,2]
[392191830,1761249045736,-151.0,0.00041882,2]
[392191831,1761249045745,-151.0,0.00041882,2]
[392191832,1761249045755,-28696.1789829,0.00041892,3]
[392191833,1761249045764,-1647.92954928,0.00041893,30]
[392191834,1761249045774,-627.29023878,0.000419,5]
[392191835,1761249045784,-500.0,0.000419,15]
[392191836,1761249045795,-1528.04,0.00041902,2]
[392191837,1761249045804,-9999.99,0.00041902,2]
[392191838,1761249045814,-5786.18,0.00041902,2]
[392191839,1761249045824,-12120.42,0.00041902,2]
[392191840,1761249045834,-150.99,0.00041902,2]
[392191841,1761249045843,-5969.55,0.00041902,2]
[392191842,1761249045853,-5500.93,0.00041902,2]
[392191843,1761249045862,-150.99,0.00041902,30]
[392191844,1761249045871,-999.99,0.00041902,2]
[392191845,1761249045880,-329.93,0.00041902,2]
[392191846,1761249045890,-343.69,0.00041902,2]
[392191847,1761249045900,-494.0,0.00041918,120]
[392191848,1761249045911,-494.0,0.00041973,120]
[392191849,1761249045921,-500.0,0.00041982,7]
[392191850,1761249045930,-500.0,0.00041989,120]
[392191851,1761249045939,-28696.1789829,0.0004199,3]
[392191852,1761249045949,-21728.76461428,0.00042,120]
[392191853,1761249045963,-345.62995822,0.00042,30]
[392191854,1761249045972,-51039.81899835,0.00042,120]
[392191855,1761249045983,-500.01,0.00042,120]
[392191856,1761249045992,-14348.0894914,0.00042002,3]
[392191857,1761249046003,-19989.2,0.00042012,2]
[392191858,1761249046014,-494.0,0.00042028,120]
[392191859,1761249046026,-5000.0,0.00042033,2]
[392191860,1761249046036,-215.0738,0.00042056,2]
[392191861,1761249046047,-200.0,0.00042058,2]
[392191862,1761249046057,-200.0,0.00042058,2]
[392191863,1761249046066,-494.0,0.00042082,120]
[392191864,1761249046077,-500.0,0.00042085,30]
[392191865,1761249046088,-14348.0894914,0.0004209,3]
[392191866,1761249046097,-494.0,0.00042137,120]
[392191867,1761249046108,-2303.1,0.00042187,2]
[392191868,1761249046118,-494.0,0.00042192,120]
[392191869,1761249046127,-3337.50818114,0.00042229,15]
[392191870,1761249046136,-677.49,0.00042234,2]
[392191871,1761249046145,-494.0,0.00042247,120]
[392191872,1761249046155,-3865.41,0.0004225,2]
[392191873,1761249046164,-5000.0,0.0004226,2]
[392191874,1761249046176,-297.445083,0.00042286,2]
[392191875,1761249046186,-494.0,0.00042301,120]
[392191876,1761249046195,-479.72,0.0004232,120]
[392191877,1761249046204,-169.24,0.00042336,14]
[392191878,1761249046215,-516.73757412,0.00042356,120]
[392191879,1761249046225,-14348.0894914,0.00042357,3]
[392191880,1761249046236,-4715.2152362,0.00042367,2]
[392191881,1761249046248,-5000.0,0.00042369,2]
[392191882,1761249046258,-169.6027184,0.00042385,15]
[392191883,1761249046268,-2500.0,0.00042398,2]
[392191884,1761249046279,-627.29023874,0.00042405,7]
[392191885,1761249046289,-320.74051982,0.00042426,2]
[392191886,1761249046300,-373.07297731,0.00042426,2]
[392191887,1761249046311,-775.47832561,0.00042428,2]
[392191888,1761249046321,-621.78829552,0.00042428,2]
[392191889,1761249046330,-825.65138265,0.0004243,2]
[392191890,1761249046339,-151.0,0.0004243,2]
[392191891,1761249046351,-151.0,0.0004243,2]
[392191892,1761249046360,-500.0,0.0004246,120]
[392191893,1761249046370,-999.0,0.0004246,120]
[392191894,1761249046380,-481.70933524,0.00042469,7]
[392191895,1761249046390,-5000.0,0.00042479,2]
[392191896,1761249046399,-169.24,0.0004248,14]
[392191897,1761249046409,-5000.0,0.0004248,2]
[392191898,1761249046418,-200.0,0.00042606,2]
[392191899,1761249046428,-200.0,0.00042606,2]
[392191900,1761249046438,-1008.7,0.00042613,2]
[392191901,1761249046447,-408.01639566,0.00042625,28]
[392191902,1761249046457,-14348.0894914,0.00042631,3]
[392191903,1761249046467,-5000.0,0.00042641,2]
[392191904,1761249046476,-2500.0,0.00042646,2]
[392191905,1761249046486,-311.04,0.00042662,2]
[392191906,1761249046495,-14348.0894914,0.0004267,3]
[392191907,1761249046504,-474.53,0.00042672,2]
[392191908,1761249046513,-5000.0,0.00042678,2]
[392191909,1761249046523,-23692.39,0.0004268,2]
[392191910,1761249046532,-2607.0,0.00042697,7]
[392191911,1761249046541,-2530.23,0.00042763,2]
[392191912,1761249046551,-5000.0,0.00042781,2]
[392191913,1761249046561,-14348.0894914,0.0004282,3]
[392191914,1761249046569,-25000.0,0.0004283,2]
[392191915,1761249046579,-5000.0,0.00042875,2]
[392191916,1761249046588,-888.0,0.00042885,2]
[392191917,1761249046598,-700.0,0.000429,15]
[392191918,1761249046608,-627.29023874,0.0004291,9]
[392191919,1761249046617,-1869.30243635,0.00042929,120]
[392191920,1761249046627,-14348.0894914,0.00042962,3]
[392191921,1761249046636,-5000.0,0.00042963,2]
[392191922,1761249046645,-696.27,0.00042972,30]
[392191923,1761249046655,-696.27,0.00042972,30]
[392191924,1761249046664,-696.27,0.00042972,30]
[392191925,1761249046673,-475.46,0.00042972,30]
[392191926,1761249046683,-475.46,0.00042972,30]
[392191927,1761249046693,-1407.2,0.00042973,30]
[392191928,1761249046702,-475.46,0.00042973,30]
[392191929,1761249046711,-475.46,0.00042973,30]
[392191930,1761249046721,-475.46,0.00042973,30]
[392191931,1761249046730,-475.46,0.00042973,30]
[392191932,1761249046740,-475.46,0.00042973,30]
[392191933,1761249046749,-256.33,0.00042973,30]
[392191934,1761249046758,-151.0,0.00042978,2]
[392191935,1761249046767,-9999.99,0.00043,120]
[392191936,1761249046776,-10000.0,0.00043,120]
[392191937,1761249046786,-163.0,0.00043,90]
[392191938,1761249046795,-563.08,0.00043,120]
[392191939,1761249046804,-169.6027184,0.00043021,15]
[392191940,1761249046813,-14348.0894914,0.00043023,3]
[392191941,1761249046822,-322.0,0.00043069,30]
[392191942,1761249046832,-150.0,0.00043109,30]
[392191943,1761249046842,-150.0,0.00043109,30]
[392191944,1761249046851,-150.0,0.00043109,30]
[392191945,1761249046860,-176.18,0.00043109,30]
[392191946,1761249046871,-377.62,0.00043109,30]
[392191947,1761249046881,-150.0,0.00043109,30]
[392191948,1761249046891,-547.46,0.00043109,30]
[392191949,1761249046900,-150.0,0.00043109,30]
[392191950,1761249046910,-547.46,0.00043109,30]
[392191951,1761249046919,-168.47,0.00043109,30]
[392191952,1761249046929,-413.94,0.00043109,30]
[392191953,1761249046938,-547.46,0.00043109,30]
[392191954,1761249046947,-168.47,0.00043109,30]
[392191955,1761249046956,-168.47,0.00043109,30]
[392191956,1761249046966,-168.47,0.00043109,30]
[392191957,1761249046975,-168.47,0.00043109,30]
[392191958,1761249046985,-168.07,0.00043109,30]
[392191959,1761249046995,-176.3,0.0004311,30]
[392191960,1761249047004,-1211.86,0.0004311,30]
[392191961,1761249047014,-300.0,0.0004311,30]
[392191962,1761249047023,-168.47,0.0004311,30]
[392191963,1761249047034,-176.3,0.0004311,30]
[392191964,1761249047043,-357.49,0.0004311,30]
[392191965,1761249047053,-414.24,0.0004311,30]
[392191966,1761249047063,-176.3,0.0004311,30]
[392191967,1761249047074,-168.47,0.0004311,30]
[392191968,1761249047083,-414.24,0.0004311,30]
[392191969,1761249047093,-547.46,0.0004311,30]
[392191970,1761249047103,-176.3,0.0004311,30]
[392191971,1761249047112,-547.46,0.0004311,30]
[392191972,1761249047122,-168.47,0.0004311,30]
[392191973,1761249047132,-414.24,0.0004311,30]
[392191974,1761249047142,-176.3,0.0004311,30]
[392191975,1761249047151,-168.47,0.0004311,30]
[392191976,1761249047241,-414.24,0.0004311,30]
[392191977,1761249047251,-547.46,0.0004311,30]
[392191978,1761249047263,-181.01,0.0004311,30]
[392191979,1761249047273,-414.24,0.0004311,30]
[392191980,1761249047284,-168.47,0.0004311,30]